lending/lending_fUSD_20260209
["ID","MTS","AMOUNT","RATE_DAILY","PERIOD"]
[404904435,1770671510824,-170.52,0.00018758,2]
[404904436,1770671510834,-968.0,0.00018817,2]
[404904437,1770671510843,-602.05,0.00018838,2]
[404904438,1770671510852,-500.0,0.00018848,2]
[404904439,1770671510861,-968.0,0.00018877,2]
[404904440,1770671510871,-968.0,0.00018911,2]
[404904441,1770671510880,-968.0,0.00018939,2]
[404904442,1770671510890,-1145.84487387,0.00019,2]
[404904443,1770671510900,-166.66,0.00019005,2]
[404904444,1770671510911,-900.0,0.00019015,2]
[404904445,1770671510921,-170.42,0.00019027,2]
[404904446,1770671510933,-968.0,0.00019039,2]
[404904447,1770671510944,-3859.0,0.00019057,2]
[404904448,1770671510955,-482.98714492,0.00019072,2]
[404904449,1770671510965,-358.42757879,0.00019122,2]
[404904450,1770671510976,-968.0,0.00019128,2]
[404904451,1770671510986,-369.0,0.00019178,2]
[404904452,1770671510995,-18868.43,0.00019178,2]
[404904453,1770671511004,-208.517436,0.00019178,2]
[404904454,1770671511014,-200.0,0.00019213,2]
[404904455,1770671511025,-200.0,0.00019213,2]
[404904456,1770671511034,-454.19,0.00019464,2]
[404904457,1770671511047,-846.12,0.00019477,2]
[404904458,1770671511057,-482.98714492,0.00019537,2]
[404904459,1770671511067,-2351.0,0.00019647,2]
[404904460,1770671511076,-150.0,0.00019726,2]
[404904461,1770671511085,-166.66,0.0001973,2]
[404904462,1770671511094,-200.0,0.00019761,2]
[404904463,1770671511104,-150.0,0.00019781,2]
[404904464,1770671511113,-201.89069271,0.00019836,2]
[404904465,1770671511122,-4930.70056391,0.000199,3]
[404904466,1770671511131,-500.0,0.00019945,2]
[404904467,1770671511142,-1000.0,0.00019963,2]
[404904468,1770671511154,-56954.67252511,0.0001999,2]
[404904469,1770671511165,-300.0,0.00019999,2]
[404904470,1770671511174,-666.0,0.00019999,2]
[404904471,1770671511186,-300.0,0.00019999,2]
[404904472,1770671511197,-666.0,0.00019999,2]
[404904473,1770671511207,-87256.45661182,0.0002,4]
[404904474,1770671511217,-482.98714492,0.00020003,2]
[404904475,1770671511226,-293.75,0.00020176,2]
[404904476,1770671511235,-300.0,0.0002018,2]
[404904477,1770671511244,-144883.8373281,0.00020181,2]
[404904478,1770671511255,-300.0,0.00020193,2]
[404904479,1770671511264,-300.0,0.00020193,2]
[404904480,1770671511274,-65356.510044,0.00020194,2]
[404904481,1770671511284,-200.0,0.00020309,2]
[404904482,1770671511293,-500.10948216,0.00020328,3]
[404904483,1770671511302,-159.04,0.00020435,2]
[404904484,1770671511312,-166.66,0.00020454,2]
[404904485,1770671511321,-500.773019,0.00020467,2]
[404904486,1770671511332,-482.98714492,0.00020468,2]
[404904487,1770671511343,-900.0,0.00020483,2]
[404904488,1770671511353,-300.0,0.00020483,14]
[404904489,1770671511362,-323.0,0.00020685,2]
[404904490,1770671511371,-237.66106357,0.00020857,2]
[404904491,1770671511381,-602.05,0.00020931,2]
[404904492,1770671511391,-298.32222226,0.00020999,2]
[404904493,1770671511400,-300.0,0.00020999,2]
[404904494,1770671511411,-81586.07315206,0.00021,2]
[404904495,1770671511421,-2000.0,0.000211,2]
[404904496,1770671511430,-619.137,0.00021159,2]
[404904497,1770671511439,-1336.0,0.00021159,2]
[404904498,1770671511448,-1411.0,0.00021159,2]
[404904499,1770671511458,-3485.0,0.00021159,2]
[404904500,1770671511467,-150.0,0.00021159,2]
[404904501,1770671511476,-1271.0,0.00021159,2]
[404904502,1770671511485,-3256.0,0.00021159,2]
[404904503,1770671511495,-6587.0,0.00021159,2]
[404904504,1770671511504,-412.0,0.00021159,2]
[404904505,1770671511513,-454.19,0.00021244,2]
[404904506,1770671511523,-151.0,0.00021311,2]
[404904507,1770671511533,-213.0,0.00021311,2]
[404904508,1770671511543,-150.391,0.00021311,2]
[404904509,1770671511554,-150.486,0.00021311,2]
[404904510,1770671511563,-150.306,0.00021311,2]
[404904511,1770671511572,-150.0,0.00021311,2]
[404904512,1770671511582,-150.405,0.00021311,2]
[404904513,1770671511591,-151.0,0.00021311,2]
[404904514,1770671511601,-170.42,0.00021405,2]
[404904515,1770671511611,-2000.0,0.000215,2]
[404904516,1770671511620,-2000.0,0.000215,2]
[404904517,1770671511629,-2000.0,0.000215,2]
[404904518,1770671511639,-3292.0,0.00021582,2]
[404904519,1770671511648,-29999.99,0.00021757,2]
[404904520,1770671511658,-16472.4,0.00021757,2]
[404904521,1770671511668,-9999.99,0.00021757,2]
[404904522,1770671511677,-5386.77,0.00021759,2]
[404904523,1770671511686,-160.0,0.00021782,2]
[404904524,1770671511697,-152.18737391,0.00021881,2]
[404904525,1770671511707,-500.0,0.0002189,2]
[404904526,1770671511716,-2017.88585206,0.00021917,2]
[404904527,1770671511725,-5000.0,0.00021918,2]
[404904528,1770671511735,-151.0,0.00021918,2]
[404904529,1770671511745,-325.32148607,0.00021918,2]
[404904530,1770671511754,-150.0,0.00021918,2]
[404904531,1770671511764,-1000.0,0.00021959,2]
[404904532,1770671511775,-150.0,0.00021973,2]
[404904533,1770671511784,-226.23,0.00021998,2]
[404904534,1770671511793,-300.0,0.00021999,2]
[404904535,1770671511804,-681.39,0.00022,7]
[404904536,1770671511814,-146704.93722888,0.00022,4]
[404904537,1770671511825,-200.0,0.00022028,2]
[404904538,1770671511837,-159.04,0.00022138,2]
[404904539,1770671511848,-151.0,0.0002236,2]
[404904540,1770671511858,-300.0,0.00022362,2]
[404904541,1770671511868,-144883.8373281,0.00022363,2]
[404904542,1770671511878,-293.75,0.0002238,2]
[404904543,1770671511887,-65356.510044,0.00022388,2]
[404904544,1770671511896,-3000.0,0.000224,2]
[404904545,1770671511905,-226.23,0.00022726,2]
[404904546,1770671511916,-416.6040039,0.00023,2]
[404904547,1770671511927,-160.0,0.00023,2]
[404904548,1770671511938,-602.05,0.00023024,2]
[404904549,1770671511949,-1000.0,0.00023673,2]
[404904550,1770671511958,-302.79,0.00023695,2]
[404904551,1770671511972,-4609.0,0.00023708,2]
[404904552,1770671511981,-159.04,0.00023841,2]
[404904553,1770671511993,-1000.0,0.00023956,2]
[404904554,1770671512003,-2460.69490808,0.0002401,2]
[404904555,1770671512015,-300.0,0.00024099,2]
[404904556,1770671512026,-178911.09366731,0.000241,2]
[404904557,1770671512035,-151.0,0.000241,2]
[404904558,1770671512045,-314.73038,0.000241,2]
[404904559,1770671512055,-151.0,0.000241,2]
[404904560,1770671512064,-314.73038,0.000241,2]
[404904561,1770671512073,-151.0,0.000241,2]
[404904562,1770671512082,-314.73038,0.000241,2]
[404904563,1770671512092,-314.73038,0.000241,2]
[404904564,1770671512103,-230.89379757,0.0002415,5]
[404904565,1770671512115,-616.0,0.00024159,2]
[404904566,1770671512126,-353.098,0.00024159,2]
[404904567,1770671512135,-3485.0,0.00024159,2]
[404904568,1770671512146,-3256.0,0.00024159,2]
[404904569,1770671512156,-6587.0,0.00024159,2]
[404904570,1770671512167,-412.0,0.00024159,2]
[404904571,1770671512176,-160.0,0.000243,3]
[404904572,1770671512185,-150.0,0.00024311,2]
[404904573,1770671512195,-302.79,0.00024365,2]
[404904574,1770671512204,-500.0,0.0002438,2]
[404904575,1770671512213,-210.78004,0.000245,2]
[404904576,1770671512223,-144883.8373281,0.00024545,2]
[404904577,1770671512232,-151.0,0.00024583,2]
[404904578,1770671512241,-65356.510044,0.00024583,2]
[404904579,1770671512250,-167.32,0.00024658,2]
[404904580,1770671512260,-1000.0,0.00024658,2]
[404904581,1770671512271,-17956.83747016,0.00025,2]
[404904582,1770671512280,-302.79,0.00025036,2]
[404904583,1770671512289,-169.18991897,0.00025248,2]
[404904584,1770671512299,-159.04,0.00025544,2]
[404904585,1770671512308,-195.83,0.00025707,2]
[404904586,1770671512317,-6982.46,0.00025803,2]
[404904587,1770671512328,-6453.0,0.00026043,2]
[404904588,1770671512337,-681.39,0.000262,7]
[404904589,1770671512347,-1000.0,0.00026592,2]
[404904590,1770671512356,-195.83,0.00026831,2]
[404904591,1770671512366,-616.0,0.00027159,2]
[404904592,1770671512375,-3485.0,0.00027159,2]
[404904593,1770671512385,-3256.0,0.00027159,2]
[404904594,1770671512394,-6587.0,0.00027159,2]
[404904595,1770671512403,-412.0,0.00027159,2]
[404904596,1770671512413,-158.67253178,0.00027397,2]
[404904597,1770671512422,-500.0,0.00027397,20]
[404904598,1770671512432,-300.0,0.00027397,2]
[404904599,1770671512441,-151.0,0.00027397,2]
[404904600,1770671512450,-151.0,0.00027397,2]
[404904601,1770671512460,-151.0,0.00027397,2]
[404904602,1770671512469,-169.18991897,0.00027773,2]
[404904603,1770671512479,-195.83,0.00027956,2]
[404904604,1770671512488,-9035.0,0.00028608,2]
[404904605,1770671512498,-280.55412175,0.00028767,2]
[404904606,1770671512507,-67299.40833468,0.000299,2]
[404904607,1770671512517,-19891.59837817,0.0003,2]
[404904608,1770671512526,-800.72651634,0.0003,2]
[404904609,1770671512536,-681.39,0.0003,7]
[404904610,1770671512545,-153.13,0.0003,2]
[404904611,1770671512555,-153.13,0.0003,2]
[404904612,1770671512568,-875.12792582,0.0003013,2]
[404904613,1770671512578,-167.32,0.00030137,2]
[404904614,1770671512587,-616.0,0.00030159,2]
[404904615,1770671512596,-3256.0,0.00030159,2]
[404904616,1770671512606,-6587.0,0.00030159,2]
[404904617,1770671512615,-412.0,0.00030159,2]
[404904618,1770671512624,-169.18991897,0.00030297,2]
[404904619,1770671512634,-6875.0,0.000306,2]
[404904620,1770671512643,-32514.56643715,0.0003095,2]
[404904621,1770671512653,-51623.78533709,0.00031,2]
[404904622,1770671512662,-157.29124643,0.0003136,2]
[404904623,1770671512673,-5529.0,0.000314,3]
[404904624,1770671512684,-12649.0,0.00031426,3]
[404904625,1770671512695,-5529.0,0.000321,5]
[404904626,1770671512706,-511.0,0.00032616,2]
[404904627,1770671512715,-800.0,0.000327,5]
[404904628,1770671512725,-169.18991897,0.00032822,2]
[404904629,1770671512734,-500.0,0.00032876,2]
[404904630,1770671512743,-371.90372646,0.00032876,2]
[404904631,1770671512753,-454.69601109,0.00032876,2]
[404904632,1770671512762,-552.71619507,0.00032876,2]
[404904633,1770671512772,-450.59009108,0.00032876,2]
[404904634,1770671512782,-500.0,0.00032876,2]
[404904635,1770671512791,-500.0,0.00032876,2]
[404904636,1770671512801,-500.0,0.00032876,2]
[404904637,1770671512811,-524.64962922,0.00032876,2]
[404904638,1770671512820,-543.59739026,0.00032876,2]
[404904639,1770671512830,-156.08243935,0.00032876,2]
[404904640,1770671512840,-500.0,0.00032876,2]
[404904641,1770671512849,-500.0,0.00032876,2]
[404904642,1770671512859,-492.05265829,0.00032876,2]
[404904643,1770671512868,-500.0,0.00032876,2]
[404904644,1770671512878,-600.0,0.00032876,2]
[404904645,1770671512889,-228.64264103,0.00032876,2]
[404904646,1770671512900,-332.14997386,0.00032876,2]
[404904647,1770671512912,-640.27424423,0.00032876,2]
[404904648,1770671512922,-247.62696011,0.00032876,2]
[404904649,1770671512932,-428.47392462,0.00032876,2]
[404904650,1770671512942,-500.0,0.00032876,2]
[404904651,1770671512953,-500.0,0.00032876,2]
[404904652,1770671512962,-500.0,0.00032876,2]
[404904653,1770671512975,-241.45416757,0.00032876,2]
[404904654,1770671512984,-500.0,0.00032876,2]
[404904655,1770671512994,-620.92276835,0.00032876,2]
[404904656,1770671513004,-500.0,0.00032876,2]
[404904657,1770671513014,-500.0,0.00032876,2]
[404904658,1770671513024,-500.0,0.00032876,2]
[404904659,1770671513035,-500.0,0.00032876,2]
[404904660,1770671513044,-158.83049152,0.00032876,2]
[404904661,1770671513055,-500.0,0.00032876,2]
[404904662,1770671513064,-600.0,0.00032876,2]
[404904663,1770671513074,-345.12,0.00032877,2]
[404904664,1770671513083,-243.47,0.000329,14]
[404904665,1770671513093,-2118.36,0.000329,2]
[404904666,1770671513103,-18875.89,0.000329,14]
[404904667,1770671513114,-51360.30990005,0.00033,2]
[404904668,1770671513124,-26410.5609663,0.00033,2]
[404904669,1770671513134,-2030.54938838,0.00033,5]
[404904670,1770671513143,-4019.4538798,0.00033,13]
[404904671,1770671513154,-681.39,0.00033,14]
[404904672,1770671513164,-161.0,0.00033,14]
[404904673,1770671513175,-3256.0,0.00033159,2]
[404904674,1770671513184,-6587.0,0.00033159,2]
[404904675,1770671513194,-412.0,0.00033159,2]
[404904676,1770671513203,-2960.59936774,0.00033347,2]
[404904677,1770671513214,-150.0,0.00033379,2]
[404904678,1770671513223,-150.0,0.00033427,2]
[404904679,1770671513234,-150.0,0.00033584,2]
[404904680,1770671513244,-150.0,0.00033685,2]
[404904681,1770671513254,-1602.44142686,0.00033796,5]
[404904682,1770671513264,-150.0,0.0003382,2]
[404904683,1770671513275,-305.96973744,0.00033849,3]
[404904684,1770671513284,-350.0,0.00034131,2]
[404904685,1770671513294,-150.0,0.00034177,2]
[404904686,1770671513306,-150.0,0.00034221,2]
[404904687,1770671513316,-150.0,0.0003428,2]
[404904688,1770671513326,-1013.88629673,0.00034398,20]
[404904689,1770671513336,-1142.45499279,0.00034398,20]
[404904690,1770671513347,-18875.89,0.000344,14]
[404904691,1770671513357,-17709.0,0.00034521,3]
[404904692,1770671513368,-150.0,0.0003458,2]
[404904693,1770671513380,-150.0,0.00034623,2]
[404904694,1770671513390,-1000.0,0.00034665,2]
[404904695,1770671513400,-1000.0,0.00034679,2]
[404904696,1770671513411,-2118.36,0.000347,2]
[404904697,1770671513422,-1000.0,0.0003471,2]
[404904698,1770671513432,-350.0,0.00034751,2]
[404904699,1770671513442,-1000.0,0.00034809,2]
[404904700,1770671513452,-1000.0,0.0003485,2]
[404904701,1770671513464,-150.0,0.00034854,2]
[404904702,1770671513475,-151.0,0.00034897,14]
[404904703,1770671513485,-180004.81262019,0.000349,2]
[404904704,1770671513495,-150.0,0.00034904,2]
[404904705,1770671513506,-350.0,0.00034917,2]
[404904706,1770671513515,-150.0,0.00034922,2]
[404904707,1770671513526,-150.0,0.00034945,2]
[404904708,1770671513536,-1000.0,0.00034972,2]
[404904709,1770671513546,-1000.0,0.00034983,2]
[404904710,1770671513555,-1000.0,0.00034996,2]
[404904711,1770671513565,-500.0,0.00035,2]
[404904712,1770671513575,-1000.0,0.00035021,2]
[404904713,1770671513585,-1000.0,0.00035035,2]
[404904714,1770671513594,-150.0,0.00035049,2]
[404904715,1770671513604,-246.14170807,0.00035077,2]
[404904716,1770671513614,-1000.0,0.00035123,2]
[404904717,1770671513624,-150.0,0.00035205,2]
[404904718,1770671513634,-150.0,0.00035229,2]
[404904719,1770671513645,-150.0,0.00035271,2]
[404904720,1770671513655,-150.0,0.00035279,2]
[404904721,1770671513665,-169.18991897,0.00035347,2]
[404904722,1770671513675,-150.0,0.00035366,2]
[404904723,1770671513685,-150.0,0.0003541,2]
[404904724,1770671513695,-152.0,0.00035452,7]
[404904725,1770671513706,-158.05747,0.00035452,7]
[404904726,1770671513716,-1000.0,0.00035473,2]
[404904727,1770671513726,-180.45803363,0.00035546,2]
[404904728,1770671513736,-1000.0,0.00035559,2]
[404904729,1770671513746,-909.61385377,0.0003557,2]
[404904730,1770671513756,-500.0,0.0003557,2]
[404904731,1770671513767,-500.0,0.0003557,2]
[404904732,1770671513776,-500.0,0.0003557,2]
[404904733,1770671513786,-500.0,0.0003557,2]
[404904734,1770671513796,-500.0,0.0003557,2]
[404904735,1770671513806,-1463.8939807,0.00035599,7]
[404904736,1770671513816,-283.07193153,0.00035599,7]
[404904737,1770671513826,-155.0,0.00035599,7]
[404904738,1770671513836,-160.0,0.000356,2]
[404904739,1770671513845,-150.0,0.000356,13]
[404904740,1770671513855,-150.0,0.000356,13]
[404904741,1770671513865,-150.0,0.000356,10]
[404904742,1770671513875,-18875.89,0.000356,14]
[404904743,1770671513885,-167996.12393224,0.0003561,2]
[404904744,1770671513895,-155.0,0.00035611,7]
[404904745,1770671513904,-150.0,0.00035615,2]
[404904746,1770671513914,-281.14159111,0.00035615,2]
[404904747,1770671513924,-200.0,0.00035616,2]
[404904748,1770671513934,-314.73038,0.00035616,7]
[404904749,1770671513944,-314.73038,0.00035616,7]
[404904750,1770671513954,-314.73038,0.00035616,7]
[404904751,1770671513964,-314.73038,0.00035616,7]
[404904752,1770671513978,-536.04570719,0.00035616,7]
[404904753,1770671513988,-500.0,0.00035616,7]
[404904754,1770671513999,-500.0,0.00035616,7]
[404904755,1770671514010,-250.77331676,0.00035616,7]
[404904756,1770671514020,-167.32,0.00035616,2]
[404904757,1770671514031,-1556.18,0.00035616,30]
[404904758,1770671514042,-10000.0,0.00035616,30]
[404904759,1770671514052,-350.0,0.00035623,2]
[404904760,1770671514062,-5771.1987356,0.00035745,2]
[404904761,1770671514073,-2118.36,0.000358,2]
[404904762,1770671514083,-2000.0,0.000359,2]
[404904763,1770671514093,-350.0,0.00035928,2]
[404904764,1770671514104,-200.0,0.00035972,2]
[404904765,1770671514114,-812.62,0.00036,30]
[404904766,1770671514124,-12000.0,0.00036,2]
[404904767,1770671514134,-30688.33775309,0.00036,2]
[404904768,1770671514144,-3256.0,0.00036159,2]
[404904769,1770671514155,-6587.0,0.00036159,2]
[404904770,1770671514165,-412.0,0.00036159,2]
[404904771,1770671514175,-350.0,0.00036277,2]
[404904772,1770671514184,-200.0,0.00036332,2]
[404904773,1770671514194,-159.57,0.000365,10]
[404904774,1770671514205,-2756.29,0.000365,30]
[404904775,1770671514215,-350.0,0.00036517,2]
[404904776,1770671514225,-150.0,0.00036649,2]
[404904777,1770671514236,-5525.49,0.0003667,120]
[404904778,1770671514246,-200.0,0.00036695,2]
[404904779,1770671514257,-1612.14363921,0.000368,2]
[404904780,1770671514267,-18875.89,0.000368,14]
[404904781,1770671514278,-361772.3467962,0.00036888,60]
[404904782,1770671514289,-204.598966,0.00036888,14]
[404904783,1770671514300,-350.0,0.00036889,2]
[404904784,1770671514311,-511.0,0.00036924,7]
[404904785,1770671514321,-500.0,0.00036986,2]
[404904786,1770671514331,-160.0,0.00037,7]
[404904787,1770671514342,-1000.0,0.00037,20]
[404904788,1770671514352,-184.886922,0.000372,120]
[404904789,1770671514363,-184.88692199,0.000372,120]
[404904790,1770671514373,-350.0,0.00037355,2]
[404904791,1770671514383,-6982.46,0.00037583,2]
[404904792,1770671514393,-2118.36,0.000376,2]
[404904793,1770671514403,-150.0,0.000378,55]
[404904794,1770671514414,-196.12,0.00037808,60]
[404904795,1770671514424,-196.12,0.00037839,80]
[404904796,1770671514650,-196.12,0.00037869,100]
[404904797,1770671514683,-169.18991902,0.00037872,2]
[404904798,1770671514692,-196.12,0.000379,120]
[404904799,1770671514701,-14200.0,0.00037921,3]
[404904800,1770671514712,-350.0,0.00037984,2]
[404904801,1770671514721,-2756.29,0.000381,30]
[404904802,1770671514730,-5893.39870799,0.00038143,2]
[404904803,1770671514740,-1000.0,0.00038311,30]
[404904804,1770671514749,-1000.000001,0.00038312,30]
[404904805,1770671514758,-2228.9,0.00038356,120]
[404904806,1770671514768,-455.83322579,0.00038356,7]
[404904807,1770671514778,-18875.89,0.000384,14]
[404904808,1770671514787,-150.0,0.00038482,2]
[404904809,1770671514796,-683.01,0.000386,30]
[404904810,1770671514806,-89408.9549116,0.000388,7]
[404904811,1770671514815,-150.0,0.000388,57]
[404904812,1770671514824,-500.0,0.000388,5]
[404904813,1770671514833,-500.0,0.000388,5]
[404904814,1770671514843,-500.0,0.000388,5]
[404904815,1770671514852,-500.77450364,0.000388,5]
[404904816,1770671514862,-501.2904335,0.000388,5]
[404904817,1770671514871,-500.0,0.000388,5]
[404904818,1770671514881,-500.0,0.000388,5]
[404904819,1770671514890,-500.0,0.000388,2]
[404904820,1770671514899,-500.0,0.000388,5]
[404904821,1770671514908,-500.0,0.000388,5]
[404904822,1770671514918,-500.0,0.000388,5]
[404904823,1770671514929,-500.0,0.000388,3]
[404904824,1770671514939,-500.0,0.000388,5]
[404904825,1770671514949,-500.0,0.000388,5]
[404904826,1770671514959,-500.0,0.000388,5]
[404904827,1770671514972,-607.48017178,0.000388,5]
[404904828,1770671514982,-500.0,0.000388,5]
[404904829,1770671514991,-500.0,0.000388,5]
[404904830,1770671515001,-500.0,0.000388,5]
[404904831,1770671515011,-500.0,0.000388,5]
[404904832,1770671515022,-500.0,0.000388,5]
[404904833,1770671515033,-500.0,0.000388,5]
[404904834,1770671515044,-500.0,0.000388,5]
[404904835,1770671515054,-500.0,0.000388,5]
[404904836,1770671515065,-169.83544119,0.000388,5]
[404904837,1770671515075,-500.0,0.000388,5]
[404904838,1770671515085,-500.0,0.000388,5]
[404904839,1770671515094,-163.22379102,0.000388,5]
[404904840,1770671515103,-166.43290814,0.000388,5]
[404904841,1770671515112,-500.0,0.000388,5]
[404904842,1770671515123,-500.0,0.000388,5]
[404904843,1770671515133,-500.0,0.000388,5]
[404904844,1770671515142,-500.0,0.000388,5]
[404904845,1770671515153,-500.0,0.000388,5]
[404904846,1770671515163,-500.0,0.000388,5]
[404904847,1770671515172,-217.87342899,0.000388,5]
[404904848,1770671515181,-500.0,0.000388,5]
[404904849,1770671515190,-302.51850462,0.00038834,2]
[404904850,1770671515200,-649.6281,0.00038888,30]
[404904851,1770671515211,-160.0,0.00039,120]
[404904852,1770671515220,-160.0,0.00039,120]
[404904853,1770671515229,-350.0,0.00039128,2]
[404904854,1770671515239,-1059.297,0.00039159,2]
[404904855,1770671515249,-6587.0,0.00039159,2]
[404904856,1770671515259,-411.398,0.00039159,2]
[404904857,1770671515268,-278.56890319,0.00039348,5]
[404904858,1770671515278,-1000.0,0.00039348,5]
[404904859,1770671515287,-946.75686173,0.00039348,5]
[404904860,1770671515297,-1000.0,0.00039348,5]
[404904861,1770671515306,-1000.0,0.00039348,2]
[404904862,1770671515316,-1000.0,0.00039348,5]
[404904863,1770671515325,-1000.0,0.00039348,3]
[404904864,1770671515334,-1000.0,0.00039348,5]
[404904865,1770671515344,-1000.0,0.00039348,5]
[404904866,1770671515353,-1000.0,0.00039348,5]
[404904867,1770671515362,-1001.76952692,0.00039348,5]
[404904868,1770671515372,-805.61116112,0.00039348,5]
[404904869,1770671515381,-1000.0,0.00039348,5]
[404904870,1770671515391,-1000.0,0.00039348,5]
[404904871,1770671515400,-1000.0,0.00039348,5]
[404904872,1770671515410,-1004.16441287,0.00039348,5]
[404904873,1770671515420,-305.46831933,0.00039348,5]
[404904874,1770671515430,-500.0,0.00039348,5]
[404904875,1770671515439,-1000.0,0.00039348,5]
[404904876,1770671515449,-1119.67330521,0.00039348,5]
[404904877,1770671515459,-614.60634748,0.00039348,5]
[404904878,1770671515469,-1000.0,0.00039348,5]
[404904879,1770671515479,-1000.0,0.00039348,5]
[404904880,1770671515488,-500.0,0.00039348,5]
[404904881,1770671515498,-2118.36,0.000394,30]
[404904882,1770671515510,-321.0,0.00039556,30]
[404904883,1770671515520,-193323.4476782,0.00039582,7]
[404904884,1770671515529,-21086.1404836,0.00039582,7]
[404904885,1770671515538,-2000.0,0.000396,2]
[404904886,1770671515548,-3537.039,0.00039615,55]
[404904887,1770671515556,-151.0,0.00039697,14]
[404904888,1770671515566,-498927.81230645,0.000397,30]
[404904889,1770671515576,-151.0,0.000397,120]
[404904890,1770671515586,-314.73038,0.000397,7]
[404904891,1770671515596,-151.0,0.000397,120]
[404904892,1770671515605,-314.73038,0.000397,7]
[404904893,1770671515614,-225.332981,0.000397,120]
[404904894,1770671515624,-314.73038,0.000397,7]
[404904895,1770671515633,-314.730388,0.000397,7]
[404904896,1770671515642,-175.892067,0.00039726,120]
[404904897,1770671515651,-175.892067,0.00039726,120]
[404904898,1770671515661,-175.892067,0.00039726,120]
[404904899,1770671515670,-175.892067,0.00039726,120]
[404904900,1770671515679,-175.892067,0.00039726,120]
[404904901,1770671515688,-175.892067,0.00039726,120]
[404904902,1770671515697,-175.892067,0.00039726,120]
[404904903,1770671515706,-175.892067,0.00039726,120]
[404904904,1770671515715,-175.892067,0.00039726,120]
[404904905,1770671515724,-175.892067,0.00039726,120]
[404904906,1770671515734,-175.892067,0.00039726,120]
[404904907,1770671515743,-175.892067,0.00039726,120]
[404904908,1770671515752,-188.585227,0.00039726,120]
[404904909,1770671515761,-183.194782,0.00039726,120]
[404904910,1770671515771,-178.210169,0.00039726,120]
[404904911,1770671515780,-1101.854,0.00039726,120]
[404904912,1770671515790,-1101.854,0.00039726,120]
[404904913,1770671515799,-1101.854,0.00039726,120]
[404904914,1770671515808,-1101.854,0.00039726,120]
[404904915,1770671515817,-1101.854,0.00039726,120]
[404904916,1770671515827,-1101.854,0.00039726,120]
[404904917,1770671515835,-1101.854,0.00039726,120]
[404904918,1770671515845,-1101.854,0.00039726,120]
[404904919,1770671515854,-1101.854,0.00039726,120]
[404904920,1770671515863,-1101.854,0.00039726,120]
[404904921,1770671515872,-1101.854,0.00039726,120]
[404904922,1770671515881,-1101.854,0.00039726,120]
[404904923,1770671515890,-1101.854,0.00039726,120]
[404904924,1770671515899,-1101.854,0.00039726,120]
[404904925,1770671515908,-1101.854,0.00039726,120]
[404904926,1770671515917,-1101.854,0.00039726,120]
[404904927,1770671515926,-1101.854,0.00039726,120]
[404904928,1770671515935,-1101.854,0.00039726,120]
[404904929,1770671515945,-1101.854,0.00039726,120]
[404904930,1770671515954,-1101.854,0.00039726,120]
[404904931,1770671515963,-151.0,0.00039726,120]
[404904932,1770671515976,-151.0,0.00039726,120]
[404904933,1770671515985,-151.0,0.00039726,120]
[404904934,1770671515994,-151.0,0.00039726,120]